[Event "Late-Titled-Tuesday-Blitz-January-23-2024"]
[Site "Chess.com"]
[Date "2024.01.23"]
[Round "2"]
[White "arenal72"]
[Black "vladislavkovalev"]
[Result "0-1"]
[WhiteElo "2567"]
[BlackElo "2873"]
[TimeControl "180+1"]
[EndTime "14:16:28 PST"]
[Termination "vladislavkovalev won by resignation"]

1. e4 {[%clk 0:03:00.9]} 1... e5 {[%clk 0:03:00.2]} 2. Nf3 {[%clk 0:02:59.6]}
2... Nc6 {[%clk 0:03:00.8]} 3. Nc3 {[%clk 0:02:59]} 3... Nf6 {[%clk 0:03:00.7]}
4. h3 {[%clk 0:02:58.1]} 4... Bb4 {[%clk 0:02:59.7]} 5. Nd5 {[%clk 0:02:51.6]}
5... O-O {[%clk 0:02:55.5]} 6. Nxb4 {[%clk 0:02:40.5]} 6... Nxb4 {[%clk
0:02:56.4]} 7. c3 {[%clk 0:02:39.5]} 7... Nc6 {[%clk 0:02:56.2]} 8. d3 {[%clk
0:02:38.3]} 8... d5 {[%clk 0:02:56.5]} 9. Qc2 {[%clk 0:02:38.4]} 9... a5 {[%clk
0:02:55.7]} 10. a4 {[%clk 0:02:32.1]} 10... b6 {[%clk 0:02:45.6]} 11. Be2 {[%clk
0:02:28.9]} 11... h6 {[%clk 0:02:39.9]} 12. O-O {[%clk 0:02:26.9]} 12... Bb7
{[%clk 0:02:38.8]} 13. Bd2 {[%clk 0:02:12.2]} 13... Qd6 {[%clk 0:02:34.5]} 14.
Rad1 {[%clk 0:02:09.9]} 14... Rad8 {[%clk 0:02:34.2]} 15. Rfe1 {[%clk
0:02:04.6]} 15... Rfe8 {[%clk 0:02:33.5]} 16. Bf1 {[%clk 0:01:51.2]} 16... Ne7
{[%clk 0:01:47.3]} 17. exd5 {[%clk 0:01:32.4]} 17... Nexd5 {[%clk 0:01:45.8]}
18. Bc1 {[%clk 0:01:18]} 18... Nf4 {[%clk 0:01:19.1]} 19. Nh2 {[%clk 0:00:42.5]}
19... N6h5 {[%clk 0:01:05.9]} 20. g3 {[%clk 0:00:34.1]} 20... Qc6 {[%clk
0:00:58]} 21. Re4 {[%clk 0:00:18.4]} 21... f5 {[%clk 0:00:58.1]} 22. gxf4 {[%clk
0:00:16.8]} 22... fxe4 {[%clk 0:00:58.8]} 23. Bg2 {[%clk 0:00:14.9]} 23... Qg6
{[%clk 0:00:54]} 24. f5 {[%clk 0:00:10]} 24... Qxg2+ {[%clk 0:00:52]} 0-1

[Event "Late-Titled-Tuesday-Blitz-January-23-2024"]
[Site "Chess.com"]
[Date "2024.01.23"]
[Round "2"]
[White "ansko1999"]
[Black "FredddieCroderg"]
[Result "0-1"]
[WhiteElo "2711"]
[BlackElo "2362"]
[TimeControl "180+1"]
[EndTime "14:16:28 PST"]
[Termination "FredddieCroderg won by checkmate"]

1. d4 {[%clk 0:03:00.9]} 1... d5 {[%clk 0:02:58.2]} 2. c4 {[%clk 0:02:59.6]}
2... e6 {[%clk 0:02:58.1]} 3. Nc3 {[%clk 0:02:59.6]} 3... Nf6 {[%clk 0:02:57.2]}
4. cxd5 {[%clk 0:02:59.3]} 4... exd5 {[%clk 0:02:57]} 5. Bg5 {[%clk 0:02:59]}
5... Be7 {[%clk 0:02:56.8]} 6. Qc2 {[%clk 0:02:57.6]} 6... O-O {[%clk
0:02:54.2]} 7. e3 {[%clk 0:02:56.9]} 7... Re8 {[%clk 0:02:53.7]} 8. Bd3 {[%clk
0:02:54.2]} 8... h6 {[%clk 0:02:52.8]} 9. Bxf6 {[%clk 0:02:52.2]} 9... Bxf6
{[%clk 0:02:52.3]} 10. Nge2 {[%clk 0:02:48.8]} 10... c5 {[%clk 0:02:45.7]} 11.
dxc5 {[%clk 0:02:38.7]} 11... Nc6 {[%clk 0:02:45.2]} 12. O-O {[%clk 0:02:27.7]}
12... Nb4 {[%clk 0:02:42.6]} 13. Qd1 {[%clk 0:02:18.1]} 13... Nxd3 {[%clk
0:02:41.1]} 14. Qxd3 {[%clk 0:02:19]} 14... Be6 {[%clk 0:02:40.1]} 15. Nd4
{[%clk 0:02:16.9]} 15... Rc8 {[%clk 0:02:38]} 16. b4 {[%clk 0:02:13.5]} 16... b6
{[%clk 0:02:34.6]} 17. c6 {[%clk 0:01:40]} 17... Bxd4 {[%clk 0:02:33.7]} 18.
Qxd4 {[%clk 0:01:40.9]} 18... Rxc6 {[%clk 0:02:32.9]} 19. Rfd1 {[%clk
0:01:38.3]} 19... Rc4 {[%clk 0:02:25.8]} 20. Qd2 {[%clk 0:01:32.9]} 20... Qf6
{[%clk 0:02:00.8]} 21. Nb5 {[%clk 0:01:22]} 21... Qg6 {[%clk 0:01:44.8]} 22. Kh1
{[%clk 0:00:37.8]} 22... Rh4 {[%clk 0:01:39.1]} 23. Nd4 {[%clk 0:00:24.3]} 23...
Qh5 {[%clk 0:01:37.1]} 24. Nf3 {[%clk 0:00:23.1]} 24... Rh3 {[%clk 0:01:20.7]}
25. Kg1 {[%clk 0:00:13.7]} 25... Rxf3 {[%clk 0:01:13.1]} 26. gxf3 {[%clk
0:00:11.8]} 26... Bh3 {[%clk 0:01:08.4]} 27. Qxd5 {[%clk 0:00:04.1]} 27... Qg6+
{[%clk 0:01:06.4]} 28. Kh1 {[%clk 0:00:01]} 28... Qg2# {[%clk 0:01:06]} 0-1

[Event "Late-Titled-Tuesday-Blitz-January-23-2024"]
[Site "Chess.com"]
[Date "2024.01.23"]
[Round "2"]
[White "mightysmasher"]
[Black "Durarbayli"]
[Result "1/2-1/2"]
[WhiteElo "2580"]
[BlackElo "2871"]
[TimeControl "180+1"]
[EndTime "14:16:31 PST"]
[Termination "Game drawn by repetition"]

1. e4 {[%clk 0:03:00.9]} 1... e6 {[%clk 0:02:59.2]} 2. d4 {[%clk 0:03:00.3]}
2... d5 {[%clk 0:02:59.8]} 3. exd5 {[%clk 0:03:01.2]} 3... exd5 {[%clk
0:03:00.5]} 4. Nf3 {[%clk 0:03:01.1]} 4... Nc6 {[%clk 0:02:59.9]} 5. Bd3 {[%clk
0:03:00.6]} 5... Nb4 {[%clk 0:02:59.7]} 6. Be2 {[%clk 0:03:00.1]} 6... Bf5
{[%clk 0:02:59.4]} 7. Na3 {[%clk 0:03:00.2]} 7... Nc6 {[%clk 0:02:55.5]} 8. O-O
{[%clk 0:02:54.6]} 8... Bxa3 {[%clk 0:02:54.8]} 9. bxa3 {[%clk 0:02:55.5]} 9...
Nge7 {[%clk 0:02:54.4]} 10. Bg5 {[%clk 0:02:50.9]} 10... O-O {[%clk 0:02:51.8]}
11. Re1 {[%clk 0:02:50.8]} 11... Qd6 {[%clk 0:02:27.8]} 12. Qc1 {[%clk
0:02:45.4]} 12... Ng6 {[%clk 0:02:21.4]} 13. h4 {[%clk 0:02:32.8]} 13... Bg4
{[%clk 0:02:06.7]} 14. c4 {[%clk 0:02:08.7]} 14... dxc4 {[%clk 0:01:34.5]} 15.
Qxc4 {[%clk 0:02:03.5]} 15... h6 {[%clk 0:01:22.4]} 16. Be3 {[%clk 0:01:46.8]}
16... Bxf3 {[%clk 0:01:14.6]} 17. Bxf3 {[%clk 0:01:46.4]} 17... Nxh4 {[%clk
0:01:15.1]} 18. Bxc6 {[%clk 0:01:46]} 18... bxc6 {[%clk 0:01:10.4]} 19. d5
{[%clk 0:01:41.1]} 19... Qf6 {[%clk 0:00:47.6]} 20. Qxc6 {[%clk 0:01:29.9]}
20... Qf5 {[%clk 0:00:40.1]} 21. Rac1 {[%clk 0:01:09.8]} 21... Qg4 {[%clk
0:00:39.7]} 22. d6 {[%clk 0:01:07.9]} 22... cxd6 {[%clk 0:00:39.8]} 23. Rc4
{[%clk 0:00:56.6]} 23... Nf3+ {[%clk 0:00:38.3]} 24. Kf1 {[%clk 0:00:55.6]}
24... Nh2+ {[%clk 0:00:35.1]} 25. Kg1 {[%clk 0:00:54.8]} 25... Nf3+ {[%clk
0:00:35.6]} 26. Kf1 {[%clk 0:00:53.9]} 26... Nh2+ {[%clk 0:00:15.1]} 27. Kg1
{[%clk 0:00:53.6]} 27... Nf3+ {[%clk 0:00:10.4]} 1/2-1/2

[Event "Late-Titled-Tuesday-Blitz-January-23-2024"]
[Site "Chess.com"]
[Date "2024.01.23"]
[Round "2"]
[White "Alex_Sahakyan2006"]
[Black "Maect19"]
[Result "1-0"]
[WhiteElo "2720"]
[BlackElo "2322"]
[TimeControl "180+1"]
[EndTime "14:16:31 PST"]
[Termination "Alex_Sahakyan2006 won by resignation"]

1. e4 {[%clk 0:03:00.9]} 1... e6 {[%clk 0:02:59.9]} 2. d4 {[%clk 0:02:59.9]}
2... d5 {[%clk 0:03:00]} 3. exd5 {[%clk 0:03:00.8]} 3... exd5 {[%clk 0:02:59.4]}
4. Nf3 {[%clk 0:03:01.7]} 4... Bd6 {[%clk 0:02:59.3]} 5. Nc3 {[%clk 0:03:01.9]}
5... c6 {[%clk 0:02:58.7]} 6. Bd3 {[%clk 0:03:01.9]} 6... Ne7 {[%clk 0:02:58.8]}
7. O-O {[%clk 0:03:01.7]} 7... O-O {[%clk 0:02:58.9]} 8. Ne2 {[%clk 0:03:02.2]}
8... Bf5 {[%clk 0:02:57.4]} 9. Ng3 {[%clk 0:03:02.5]} 9... Bxd3 {[%clk
0:02:56.9]} 10. Qxd3 {[%clk 0:03:03.4]} 10... Nd7 {[%clk 0:02:56.6]} 11. Nf5
{[%clk 0:03:02.5]} 11... Nxf5 {[%clk 0:02:56.1]} 12. Qxf5 {[%clk 0:03:03.4]}
12... Nf6 {[%clk 0:02:50.7]} 13. Bg5 {[%clk 0:02:49.4]} 13... Qd7 {[%clk
0:02:39.6]} 14. Nh4 {[%clk 0:02:49.5]} 14... Qxf5 {[%clk 0:02:13.3]} 15. Nxf5
{[%clk 0:02:50.4]} 15... Ne4 {[%clk 0:02:11.2]} 16. Nxd6 {[%clk 0:02:50.5]}
16... Nxg5 {[%clk 0:02:08.6]} 17. Nxb7 {[%clk 0:02:33.6]} 17... Rab8 {[%clk
0:01:54.7]} 18. Na5 {[%clk 0:02:32.9]} 18... Rxb2 {[%clk 0:01:54.1]} 19. Nxc6
{[%clk 0:02:32.3]} 19... Rxc2 {[%clk 0:01:54]} 20. Ne7+ {[%clk 0:02:31.2]} 20...
Kh8 {[%clk 0:01:52.7]} 21. Nxd5 {[%clk 0:02:32.1]} 21... Rd8 {[%clk 0:01:34.8]}
22. Ne3 {[%clk 0:02:31.9]} 22... Rd2 {[%clk 0:01:29.4]} 23. d5 {[%clk
0:02:30.6]} 23... Ne4 {[%clk 0:01:27.4]} 24. Rfd1 {[%clk 0:02:13.8]} 24... Rb2
{[%clk 0:01:01.3]} 25. Rd4 {[%clk 0:01:38.2]} 25... Nc3 {[%clk 0:00:57.6]} 26.
Rc4 {[%clk 0:01:21.3]} 26... Nxa2 {[%clk 0:00:23.6]} 27. Ra4 {[%clk 0:01:20.2]}
27... Nc3 {[%clk 0:00:23.2]} 28. Rxa7 {[%clk 0:01:20.2]} 28... g6 {[%clk
0:00:19.7]} 29. Rxf7 {[%clk 0:01:17.9]} 29... Kg8 {[%clk 0:00:18.1]} 30. Rc7
{[%clk 0:01:17.1]} 30... Ne4 {[%clk 0:00:16.3]} 31. Ng4 {[%clk 0:01:05.4]} 31...
Rxd5 {[%clk 0:00:13.6]} 32. Ra8+ {[%clk 0:01:03.9]} 1-0

[Event "Late-Titled-Tuesday-Blitz-January-23-2024"]
[Site "Chess.com"]
[Date "2024.01.23"]
[Round "2"]
[White "TigrVShlyape"]
[Black "iulik86"]
[Result "1-0"]
[WhiteElo "2949"]
[BlackElo "2594"]
[TimeControl "180+1"]
[EndTime "14:16:34 PST"]
[Termination "TigrVShlyape won by resignation"]

1. d4 {[%clk 0:03:00.9]} 1... d5 {[%clk 0:02:59.9]} 2. Bf4 {[%clk 0:03:00.4]}
2... Nf6 {[%clk 0:02:58.6]} 3. e3 {[%clk 0:03:00.7]} 3... e6 {[%clk 0:02:57.7]}
4. Nf3 {[%clk 0:03:00.6]} 4... c5 {[%clk 0:02:54.7]} 5. c3 {[%clk 0:03:00.1]}
5... Nc6 {[%clk 0:02:54.9]} 6. Nbd2 {[%clk 0:02:59.5]} 6... Nh5 {[%clk
0:02:55.4]} 7. Bg5 {[%clk 0:02:59.1]} 7... Qb6 {[%clk 0:02:52.8]} 8. dxc5 {[%clk
0:02:58.4]} 8... Bxc5 {[%clk 0:02:49.5]} 9. b4 {[%clk 0:02:57.6]} 9... Be7
{[%clk 0:02:45.6]} 10. b5 {[%clk 0:02:55.5]} 10... Na5 {[%clk 0:02:35.8]} 11.
Bxe7 {[%clk 0:02:55]} 11... Kxe7 {[%clk 0:02:36.7]} 12. Qa4 {[%clk 0:02:54.6]}
12... Qc7 {[%clk 0:02:25.5]} 13. Qb4+ {[%clk 0:02:53.7]} 13... Ke8 {[%clk
0:02:20.3]} 14. c4 {[%clk 0:02:51.4]} 14... dxc4 {[%clk 0:02:14.6]} 15. Bxc4
{[%clk 0:02:50.4]} 15... Nf6 {[%clk 0:02:08.3]} 16. O-O {[%clk 0:02:49.6]} 16...
b6 {[%clk 0:02:07.8]} 17. Rac1 {[%clk 0:02:48.4]} 17... Qe7 {[%clk 0:02:07]} 18.
Qb2 {[%clk 0:02:47]} 18... Bb7 {[%clk 0:01:58.8]} 19. Be2 {[%clk 0:02:46.1]}
19... Rd8 {[%clk 0:01:52.9]} 20. Rc2 {[%clk 0:02:39.9]} 20... h6 {[%clk
0:01:40.7]} 21. Rfc1 {[%clk 0:02:39.3]} 21... Nd5 {[%clk 0:01:40.5]} 22. Qxg7
{[%clk 0:02:25.3]} 22... Qf6 {[%clk 0:01:37.6]} 23. Qg3 {[%clk 0:02:03.8]} 23...
Kf8 {[%clk 0:01:23.4]} 24. a3 {[%clk 0:01:55.1]} 24... Rg8 {[%clk 0:01:19.1]}
25. Qh3 {[%clk 0:01:48.6]} 25... Ne7 {[%clk 0:01:09.2]} 26. g3 {[%clk
0:01:33.4]} 26... Nf5 {[%clk 0:01:00.5]} 27. Rc7 {[%clk 0:01:20.3]} 27... Qb2
{[%clk 0:00:53.8]} 28. e4 {[%clk 0:01:11.9]} 28... Rxd2 {[%clk 0:00:44.9]} 29.
Nxd2 {[%clk 0:01:09.1]} 29... Qxd2 {[%clk 0:00:43.9]} 30. exf5 {[%clk
0:01:06.9]} 30... Qxe2 {[%clk 0:00:26]} 31. Qxh6+ {[%clk 0:01:05.6]} 31... Ke8
{[%clk 0:00:12.4]} 32. Qf6 {[%clk 0:01:05.4]} 32... exf5 {[%clk 0:00:12.6]} 33.
Qxf7+ {[%clk 0:01:04.1]} 1-0

[Event "Late-Titled-Tuesday-Blitz-January-23-2024"]
[Site "Chess.com"]
[Date "2024.01.23"]
[Round "2"]
[White "GiorgianBarbosa"]
[Black "Vicmary2005"]
[Result "0-1"]
[WhiteElo "2427"]
[BlackElo "1992"]
[TimeControl "180+1"]
[EndTime "14:16:38 PST"]
[Termination "Vicmary2005 won by checkmate"]

1. e4 {[%clk 0:03:00]} 1... c5 {[%clk 0:02:59.2]} 2. Nc3 {[%clk 0:02:59.2]} 2...
Nc6 {[%clk 0:02:58]} 3. g3 {[%clk 0:02:59.6]} 3... g6 {[%clk 0:02:57.3]} 4. Bg2
{[%clk 0:03:00.5]} 4... Bg7 {[%clk 0:02:56.1]} 5. d3 {[%clk 0:03:01.4]} 5... e6
{[%clk 0:02:55.4]} 6. Be3 {[%clk 0:03:02.3]} 6... d6 {[%clk 0:02:47.1]} 7. Nge2
{[%clk 0:03:02.4]} 7... Nge7 {[%clk 0:02:44.7]} 8. d4 {[%clk 0:03:02.6]} 8...
cxd4 {[%clk 0:02:43.5]} 9. Nxd4 {[%clk 0:03:03.4]} 9... O-O {[%clk 0:02:42.5]}
10. Nxc6 {[%clk 0:02:59.5]} 10... bxc6 {[%clk 0:02:41.3]} 11. Qd2 {[%clk
0:03:00.4]} 11... d5 {[%clk 0:02:39.9]} 12. Rd1 {[%clk 0:02:53.2]} 12... Ba6
{[%clk 0:02:00.6]} 13. h4 {[%clk 0:02:47.4]} 13... h5 {[%clk 0:01:53.3]} 14. Bd4
{[%clk 0:02:43]} 14... e5 {[%clk 0:01:06.2]} 15. Bc5 {[%clk 0:02:42.5]} 15... d4
{[%clk 0:01:06]} 16. Ne2 {[%clk 0:02:42.4]} 16... Re8 {[%clk 0:00:53.1]} 17. O-O
{[%clk 0:02:42.1]} 17... Nc8 {[%clk 0:00:49.7]} 18. Rfe1 {[%clk 0:02:41.3]}
18... Nd6 {[%clk 0:00:47.3]} 19. b3 {[%clk 0:02:37.7]} 19... Bxe2 {[%clk
0:00:39]} 20. Rxe2 {[%clk 0:02:38.6]} 20... Nb5 {[%clk 0:00:39.5]} 21. Ree1
{[%clk 0:02:31.5]} 21... Nc3 {[%clk 0:00:38.9]} 22. Ra1 {[%clk 0:02:31.2]} 22...
Qa5 {[%clk 0:00:34.6]} 23. b4 {[%clk 0:02:27]} 23... Qc7 {[%clk 0:00:28.9]} 24.
a4 {[%clk 0:02:23.4]} 24... a5 {[%clk 0:00:27.1]} 25. Bf1 {[%clk 0:02:23.2]}
25... axb4 {[%clk 0:00:26.1]} 26. Bxb4 {[%clk 0:02:24.1]} 26... Nxa4 {[%clk
0:00:23.5]} 27. Bc4 {[%clk 0:02:24.4]} 27... Nb6 {[%clk 0:00:22.8]} 28. Ba5
{[%clk 0:02:17.6]} 28... Nxc4 {[%clk 0:00:19.7]} 29. Qd3 {[%clk 0:02:01.5]}
29... Nxa5 {[%clk 0:00:18.3]} 30. Ra4 {[%clk 0:02:01.7]} 30... Nb7 {[%clk
0:00:18]} 31. Rc4 {[%clk 0:02:01.6]} 31... Nd6 {[%clk 0:00:17.6]} 32. Rb4 {[%clk
0:01:54.3]} 32... c5 {[%clk 0:00:17.4]} 33. Rbb1 {[%clk 0:01:53.3]} 33... Reb8
{[%clk 0:00:16.9]} 34. Rbc1 {[%clk 0:01:50.9]} 34... c4 {[%clk 0:00:16.8]} 35.
Qe2 {[%clk 0:01:50.2]} 35... Qa5 {[%clk 0:00:15.8]} 36. Kg2 {[%clk 0:01:50.4]}
36... Qc3 {[%clk 0:00:15.7]} 37. Red1 {[%clk 0:01:50]} 37... Rb2 {[%clk
0:00:12.7]} 38. Qf1 {[%clk 0:01:50.6]} 38... Rxc2 {[%clk 0:00:12.4]} 39. Rb1
{[%clk 0:01:47.9]} 39... Raa2 {[%clk 0:00:11.3]} 40. Rb8+ {[%clk 0:01:44.9]}
40... Kh7 {[%clk 0:00:11.3]} 41. Rd8 {[%clk 0:01:45.7]} 41... Rxf2+ {[%clk
0:00:11.3]} 42. Qxf2 {[%clk 0:01:46.4]} 42... Rxf2+ {[%clk 0:00:11.8]} 43. Kxf2
{[%clk 0:01:47.3]} 43... Qe3+ {[%clk 0:00:10.1]} 44. Kf1 {[%clk 0:01:47.3]}
44... Nxe4 {[%clk 0:00:09.9]} 45. Kg2 {[%clk 0:01:41.2]} 45... Qxg3+ {[%clk
0:00:09.5]} 46. Kh1 {[%clk 0:01:42.1]} 46... Nf2# {[%clk 0:00:08.9]} 0-1

[Event "Late-Titled-Tuesday-Blitz-January-23-2024"]
[Site "Chess.com"]
[Date "2024.01.23"]
[Round "2"]
[White "GMKrikor"]
[Black "luizzy"]
[Result "1-0"]
[WhiteElo "2792"]
[BlackElo "2543"]
[TimeControl "180+1"]
[EndTime "14:16:42 PST"]
[Termination "GMKrikor won by resignation"]

1. Nf3 {[%clk 0:03:00.9]} 1... Nf6 {[%clk 0:02:58.8]} 2. c4 {[%clk 0:03:00.7]}
2... g6 {[%clk 0:02:58.4]} 3. Nc3 {[%clk 0:02:59.8]} 3... d6 {[%clk 0:02:57.9]}
4. e4 {[%clk 0:02:57.9]} 4... c5 {[%clk 0:02:55.3]} 5. d4 {[%clk 0:02:57.9]}
5... cxd4 {[%clk 0:02:51.2]} 6. Nxd4 {[%clk 0:02:58.8]} 6... Bg7 {[%clk
0:02:51.4]} 7. Be2 {[%clk 0:02:57.6]} 7... O-O {[%clk 0:02:50.4]} 8. Be3 {[%clk
0:02:57.6]} 8... Nc6 {[%clk 0:02:50.7]} 9. Nc2 {[%clk 0:02:46.6]} 9... a6 {[%clk
0:02:34.9]} 10. O-O {[%clk 0:02:45.4]} 10... Qa5 {[%clk 0:02:31.3]} 11. Rb1
{[%clk 0:02:33.5]} 11... Bd7 {[%clk 0:02:19.6]} 12. h3 {[%clk 0:02:23.4]} 12...
Rfc8 {[%clk 0:02:14.3]} 13. f4 {[%clk 0:02:19.9]} 13... Be6 {[%clk 0:01:25.4]}
14. b4 {[%clk 0:02:08.5]} 14... Qc7 {[%clk 0:01:24.8]} 15. Nd5 {[%clk
0:01:54.1]} 15... Bxd5 {[%clk 0:01:13.8]} 16. exd5 {[%clk 0:01:45.2]} 16... Nb8
{[%clk 0:01:07.8]} 17. Nd4 {[%clk 0:01:30.7]} 17... b5 {[%clk 0:01:01.3]} 18.
Rc1 {[%clk 0:01:28]} 18... bxc4 {[%clk 0:00:59.3]} 19. Bxc4 {[%clk 0:01:27.4]}
19... Qb7 {[%clk 0:00:54.5]} 20. Qb3 {[%clk 0:01:27.5]} 20... Nbd7 {[%clk
0:00:48.6]} 21. Nc6 {[%clk 0:01:18.3]} 21... Kf8 {[%clk 0:00:47.7]} 22. Rfe1
{[%clk 0:01:12.9]} 22... Re8 {[%clk 0:00:31]} 23. Na5 {[%clk 0:00:58.2]} 23...
Qb8 {[%clk 0:00:27.9]} 24. Be2 {[%clk 0:00:55.4]} 24... Nb6 {[%clk 0:00:20.5]}
25. Bf3 {[%clk 0:00:54.7]} 25... Qa7 {[%clk 0:00:18.8]} 26. Rc6 {[%clk
0:00:52.2]} 26... Rab8 {[%clk 0:00:18.4]} 27. Rec1 {[%clk 0:00:47.3]} 27... Rec8
{[%clk 0:00:13.7]} 28. Rxc8+ {[%clk 0:00:46.5]} 28... Rxc8 {[%clk 0:00:14]} 29.
Rxc8+ {[%clk 0:00:46.5]} 1-0

[Event "Late-Titled-Tuesday-Blitz-January-23-2024"]
[Site "Chess.com"]
[Date "2024.01.23"]
[Round "2"]
[White "Sjakkerntobi"]
[Black "hsd2016"]
[Result "0-1"]
[WhiteElo "2498"]
[BlackElo "2293"]
[TimeControl "180+1"]
[EndTime "14:16:44 PST"]
[Termination "hsd2016 won by resignation"]

1. e4 {[%clk 0:03:00.9]} 1... c5 {[%clk 0:02:57.6]} 2. Nf3 {[%clk 0:03:00.6]}
2... e6 {[%clk 0:02:57.2]} 3. d4 {[%clk 0:03:00.4]} 3... cxd4 {[%clk 0:02:58.1]}
4. Nxd4 {[%clk 0:03:01.3]} 4... a6 {[%clk 0:02:58.4]} 5. c4 {[%clk 0:03:02]}
5... Nf6 {[%clk 0:02:56.5]} 6. Nc3 {[%clk 0:03:02.4]} 6... Bb4 {[%clk
0:02:56.4]} 7. Qd3 {[%clk 0:02:51.9]} 7... d5 {[%clk 0:02:50.5]} 8. e5 {[%clk
0:02:44.2]} 8... Ne4 {[%clk 0:02:35.3]} 9. a3 {[%clk 0:02:38.1]} 9... Bxc3+
{[%clk 0:02:32.7]} 10. bxc3 {[%clk 0:02:38.1]} 10... Qc7 {[%clk 0:02:23.5]} 11.
Qf3 {[%clk 0:02:28.6]} 11... Qxe5 {[%clk 0:02:18.6]} 12. Be2 {[%clk 0:02:25.3]}
12... Nc6 {[%clk 0:02:11.2]} 13. Bf4 {[%clk 0:01:49.6]} 13... Qf6 {[%clk
0:01:49.1]} 14. cxd5 {[%clk 0:01:46.1]} 14... exd5 {[%clk 0:01:47.3]} 15. O-O
{[%clk 0:01:44.2]} 15... O-O {[%clk 0:01:45.3]} 16. Rfd1 {[%clk 0:01:36.2]}
16... Bd7 {[%clk 0:01:23]} 17. Nxc6 {[%clk 0:01:15.2]} 17... bxc6 {[%clk
0:01:13.6]} 18. Rac1 {[%clk 0:01:06]} 18... Rfe8 {[%clk 0:01:04.7]} 19. Bf1
{[%clk 0:01:01.2]} 19... Qg6 {[%clk 0:01:00.8]} 20. c4 {[%clk 0:00:58.9]} 20...
Bg4 {[%clk 0:01:00.4]} 21. Qb3 {[%clk 0:00:55.2]} 21... Bxd1 {[%clk 0:00:59.6]}
22. Rxd1 {[%clk 0:00:56.1]} 22... Qf5 {[%clk 0:00:55]} 23. Be3 {[%clk
0:00:53.2]} 23... Rad8 {[%clk 0:00:53.7]} 24. Bb6 {[%clk 0:00:49.3]} 24... Rb8
{[%clk 0:00:49.3]} 25. cxd5 {[%clk 0:00:44.6]} 25... cxd5 {[%clk 0:00:41.7]} 26.
Qa4 {[%clk 0:00:35.1]} 26... Nc3 {[%clk 0:00:31.8]} 27. Bd3 {[%clk 0:00:27.9]}
27... Nxd1 {[%clk 0:00:29]} 28. Qxd1 {[%clk 0:00:26.1]} 28... Qxd3 {[%clk
0:00:28.9]} 29. Qxd3 {[%clk 0:00:27]} 29... Re1+ {[%clk 0:00:29]} 30. Qf1 {[%clk
0:00:27.9]} 0-1

[Event "Late-Titled-Tuesday-Blitz-January-23-2024"]
[Site "Chess.com"]
[Date "2024.01.23"]
[Round "2"]
[White "Alex_Banzea"]
[Black "DonJuan_34"]
[Result "1-0"]
[WhiteElo "2626"]
[BlackElo "2397"]
[TimeControl "180+1"]
[EndTime "14:16:46 PST"]
[Termination "Alex_Banzea won by resignation"]

1. d4 {[%clk 0:03:00.9]} 1... Nf6 {[%clk 0:02:36.4]} 2. Nc3 {[%clk 0:02:42.5]}
2... g6 {[%clk 0:02:34.5]} 3. e4 {[%clk 0:02:15.9]} 3... d6 {[%clk 0:02:34.2]}
4. h3 {[%clk 0:01:39.4]} 4... Bg7 {[%clk 0:02:33]} 5. g4 {[%clk 0:01:36.5]} 5...
O-O {[%clk 0:02:29.9]} 6. Nge2 {[%clk 0:01:20.8]} 6... e5 {[%clk 0:02:26]} 7. d5
{[%clk 0:01:04.6]} 7... c6 {[%clk 0:02:24.8]} 8. Ng3 {[%clk 0:01:03.4]} 8... a6
{[%clk 0:02:20]} 9. a4 {[%clk 0:00:50.9]} 9... cxd5 {[%clk 0:02:00.7]} 10. exd5
{[%clk 0:00:50.7]} 10... Re8 {[%clk 0:01:58.5]} 11. g5 {[%clk 0:00:43.3]} 11...
Nfd7 {[%clk 0:01:56.8]} 12. Nge4 {[%clk 0:00:33.9]} 12... Nf8 {[%clk 0:01:55.1]}
13. h4 {[%clk 0:00:33]} 13... a5 {[%clk 0:01:50.5]} 14. h5 {[%clk 0:00:27.1]}
14... Na6 {[%clk 0:01:49.1]} 15. Be3 {[%clk 0:00:21.4]} 15... b6 {[%clk
0:01:45.7]} 16. Bb5 {[%clk 0:00:20.3]} 16... Re7 {[%clk 0:01:37.3]} 17. Qf3
{[%clk 0:00:19.7]} 17... Nc5 {[%clk 0:01:23.7]} 18. Nf6+ {[%clk 0:00:18.2]}
18... Bxf6 {[%clk 0:01:23.6]} 19. gxf6 {[%clk 0:00:18]} 19... e4 {[%clk
0:01:16]} 20. fxe7 {[%clk 0:00:17.5]} 20... Qxe7 {[%clk 0:01:15.7]} 21. Qf4
{[%clk 0:00:16.5]} 21... f6 {[%clk 0:01:09.3]} 22. hxg6 {[%clk 0:00:16.6]} 22...
Nxg6 {[%clk 0:01:08.8]} 23. Qh6 {[%clk 0:00:16.6]} 23... f5 {[%clk 0:01:06.9]}
24. O-O-O {[%clk 0:00:16.6]} 24... Ra7 {[%clk 0:00:59.5]} 25. Bd4 {[%clk
0:00:15.4]} 25... Bd7 {[%clk 0:00:54.5]} 26. Rdg1 {[%clk 0:00:14.2]} 26... Be8
{[%clk 0:00:54.4]} 27. Bxe8 {[%clk 0:00:07.7]} 27... Qxe8 {[%clk 0:00:54.1]} 28.
Nb5 {[%clk 0:00:08.5]} 28... Rf7 {[%clk 0:00:53.2]} 29. Nxd6 {[%clk 0:00:08.7]}
29... Qxa4 {[%clk 0:00:52.3]} 30. Rxg6+ {[%clk 0:00:06.7]} 1-0